Cogmind - Beta 13 @@@ ROGUE MODE // 2024.02.29 @ 14:47:09 Player: Bunch Result: Destroyed by Y-45 Defender with Heavy Assault Rifle Performance ------------- Evolutions (1) 500 Regions Visited (2) 400 Robots Destroyed (26) 130 Value Destroyed (570) 570 Prototype IDs (1) 20 Alien Tech Used (0) 0 Bonus (0) 0 TOTAL SCORE: 1620 Bonus ------- None Cogmind --------- Core Integrity 0/400 Matter 300/300 Energy 100/100 System Corruption 0% Temperature Cool (9) Movement Core (1350) Ox26 Location -9/Materials Parts ------- > --- POWER (2) -------- (None) > --- PROPULSION (2) --- (None) > --- UTILITY (3) ------ Huge Storage Unit > --- WEAPON (2) ------- (None) > --- INVENTORY (25) --- Medium Storage Unit High-capacity Battery (250) Sensor Array Signal Interpreter Light Armor Plating Peak State ------------ > --- POWER ------------ Improved Ion Engine Improved Ion Engine > --- PROPULSION ------- Light Treads Light Treads > --- UTILITY ---------- Small Storage Unit Compact Matter Pod Structural Scanner > --- WEAPON ----------- EM Pulse Gun Concussive RPG > --- INVENTORY -------- Huge Storage Unit High-capacity Battery Sensor Array Signal Interpreter Improved Medium Laser Assault Rifle [Rating: 15] Favorites ----------- Power Improved Ion Engine Engine Improved Ion Engine Propulsion Light Treads Treads Light Treads Utility Structural Scanner Device Structural Scanner Storage Small Storage Unit Weapon Improved Medium Laser Energy Gun Improved Medium Laser Ballistic Gun Assault Rifle Launcher Grenade Launcher Special Weapon Mining Laser Build | -11 -10 -9 ------- Run | Yrd Mat Mat Slots Evolved 2 | . . 2 Power 1 | . . 1 Propulsion . | . . . Utility 1 | . . 1 Weapon . | . . . Parts Attached 36 | 7 16 13 Power 7 | 1 3 3 Engine 7 | 1 3 3 Core . | . . . Reactor . | . . . Propulsion 5 | 2 2 1 Treads 5 | 2 2 1 Leg . | . . . Wheel . | . . . Hover . | . . . Flight . | . . . Utility 11 | 1 5 5 Device 3 | . 2 1 Storage 8 | 1 3 4 Processor . | . . . Hackware . | . . . Protection . | . . . Artifact . | . . . Weapon 13 | 3 6 4 Energy Gun 5 | 1 3 1 Energy Cannon . | . . . Ballistic Gun 4 | 2 1 1 Ballistic Cannon . | . . . Launcher 3 | . 1 2 Special Weapon 1 | . 1 . Impact Weapon . | . . . Slashing Weapon . | . . . Piercing Weapon . | . . . Special Melee Weapon . | . . . Unidentified Prototypes 1 | . 1 . Parts Lost 11 | . 1 10 Power 3 | . . 3 Propulsion 2 | . . 2 Utility 2 | . . 2 Weapon 4 | . 1 3 Highest Loss Streak 6 | . 1 6 To Critical Strikes . | . . . Average Slot Usage (%) 88 | . 90 85 Engine 15 | . 13 18 Treads 23 | . 27 17 Device 9 | . 7 11 Storage 15 | . 13 18 Energy Gun 14 | . 14 15 Ballistic Gun 7 | . 10 2 Naked Turns . | . . . Heaviest Build 94 | 14 89 94 Greatest Support 40 | 40 40 40 Greatest Overweight (x) 30 | . 4 30 Average Overweight (x) . | . . . Largest Inventory Capacity 25 | 8 25 25 Average Capacity 10 | 5 9 12 Most Carried 8 | 5 8 7 Average Carried 5 | 2 7 5 Final Capacity 25 | 8 8 25 Final Carried 7 | 4 7 5 Class Distribution -------------------- 100% | Mutant Dominant Class ---------------- Mutant | -10/Materials Mutant | -9/Materials Resources | -11 -10 -9 ----------- Run | Yrd Mat Mat Matter Collected 756 | 243 152 361 Remotely . | . . . Salvage Created 813 | . 437 376 Parts 70 | . 43 27 Haulers Intercepted . | . . . Recyclers Shooed 1 | . . 1 Parts Field Recycled . | . . . Retrieved Matter . | . . . Parts Self-Destructed . | . . . Prevented . | . . . Kills | -11 -10 -9 ------- Run | Yrd Mat Mat Combat Hostiles Destroyed 17 | . 13 4 Guns 16 | . 13 3 AOE 1 | . . 1 Classes Destroyed 8 | . 4 4 Worker 3 | . 1 2 Builder 1 | . . 1 Tunneler 1 | . . 1 Recycler 1 | . . 1 Watcher 3 | . 2 1 Swarmer 6 | . 6 . Grunt 7 | . 7 . Sentry 4 | . . 4 Best Kill Streak 4 | . 4 2 Combat Bots Only 3 | . 3 1 Max Kills in Single Turn 2 | . 2 2 Gunslinging 1 | . 1 . Exploded 1 | . . 1 Melee . | . . . Uniques/NPCs Destroyed . | . . . Combat | -11 -10 -9 -------- Run | Yrd Mat Mat Hostile Shots Fired 154 | . 54 100 Missed 48 | . 18 30 Damage Taken 1437 | . 358 1079 Core 475 | . 75 400 Absorbed by Shields . | . . . Core Remaining (%) 85 | 100 70 . Volleys Fired 62 | . 30 32 Largest 2 | . 2 2 Hottest 156 | . 156 96 Shots Fired 109 | . 52 57 Gun 105 | . 50 55 Cannon . | . . . Launcher 2 | . . 2 Special 2 | . 2 . Kinetic 22 | . 20 2 Thermal 57 | . 32 25 Explosive 2 | . . 2 Electromagnetic 28 | . . 28 Robot Hit Streak 9 | . 6 9 Robot Miss Streak 4 | . 4 2 Penetration Max . | . . . Secondary Targets 1 | . 1 . Max Gunslinging Chain 1 | . 1 . Shots Hit Robots 66 | . 30 36 Core Hits 36 | . 20 16 Critical Kills . | . . . Critical Parts Destroyed . | . . . Critical Strikes 3 | . 1 2 Burn 2 | . 1 1 Corrupt 1 | . . 1 Melee Attacks . | . . . Impact . | . . . Slashing . | . . . Piercing . | . . . Sneak Attacks . | . . . Combat Hostiles . | . . . Follow-up Attacks . | . . . Damage Inflicted 1202 | . 513 689 Guns 1055 | . 513 542 Cannons . | . . . Explosions 140 | . . 140 Melee . | . . . Ramming 7 | . . 7 Kinetic 196 | . 167 29 Thermal 734 | . 346 388 Explosive 76 | . . 76 Electromagnetic 189 | . . 189 Impact . | . . . Slashing . | . . . Piercing . | . . . Highest Corruption . | . . . Average Corruption . | . . . Corruption Purged . | . . . Corruption Blocked . | . . . Overload Shots . | . . . Overflow Damage . | . . . Projectiles . | . . . Explosions . | . . . Melee . | . . . Knockbacks . | . . . Impact . | . . . Kinetic . | . . . Secondary . | . . . Self-Inflicted Damage 47 | . . 47 Shots 2 | . . 2 Rammed 1 | . . 1 Targets Rammed 1 | . . 1 Kicked . | . . . Crushed . | . . . Highest Temperature 372 | . 210 372 Average Temperature 97 | . 59 129 Received Heat Transfer 486 | . 117 369 Effects 2 | . . 2 Shutdowns 2 | . . 2 Siege Activations . | . . . Robots Corrupted . | . . . Combat Hostiles . | . . . Parts Fried . | . . . Impact Corruptions . | . . . Robots Melted . | . . . Combat Hostiles . | . . . Parts Melted 2 | . 1 1 Heat Transferred 1641 | . 814 827 Parts Sabotaged . | . . . Parts Stolen . | . . . Parts Stripped . | . . . Power Chain Reactions 1 | . . 1 Alert | -11 -10 -9 ------- Run | Yrd Mat Mat Peak Influence 217 | . 217 205 Initial 56 | . . 56 Average 83 | . 92 87 Maximum Alert Level 1 | . 1 1 Low Security (%) 82 | 100 79 84 Level 1 17 | . 20 15 Level 2 . | . . . Level 3 . | . . . Level 4 . | . . . Level 5 . | . . . High Security . | . . . Max Security . | . . . Squads Dispatched 3 | . 2 1 Investigation 1 | . 1 . Extermination . | . . . Reinforcement 2 | . 1 1 Assault . | . . . Garrison . | . . . Intercept . | . . . Searches Triggered . | . . . Construction Impeded . | . . . Haulers Reinforced . | . . . Active Scanning Responses . | . . . Cargo Convoy Interrupts . | . . . Stealth | -11 -10 -9 --------- Run | Yrd Mat Mat Distress Signals 3 | . 2 1 Communications Jammed . | . . . Distress Signals . | . . . Times Spotted 25 | . 17 8 Peak Tracking Total 4 | . 4 3 Tactical Retreats . | . . . Traps | -11 -10 -9 ------- Run | Yrd Mat Mat Traps Triggered 4 | . 4 . Indirectly . | . . . Trap Hack Attempts . | . . . Triggered . | . . . Disarmed . | . . . Reprogrammed . | . . . Reused . | . . . Traps Extracted . | . . . Installed . | . . . Triggered . | . . . Machines | -11 -10 -9 ---------- Run | Yrd Mat Mat Machines Disabled 1 | . . 1 Max in Single Turn 1 | . . 1 Machines Repaired . | . . . Machines Dismantled . | . . . Machines Sabotaged . | . . . Overloaded Fab Kills . | . . . Hacking | -11 -10 -9 --------- Run | Yrd Mat Mat Machines Accessed 5 | . 4 1 Terminals 5 | . 4 1 Fabricators . | . . . Repair Stations . | . . . Recycling Units . | . . . Scanalyzers . | . . . Garrison Access . | . . . Total Hacks 14 | . 13 1 Successful 8 | . 7 1 Failed 6 | . 6 . Catastrophic . | . . . Database Lockouts . | . . . Manual . | . . . Terminals 14 | . 13 1 Fabricators . | . . . Repair Stations . | . . . Recycling Units . | . . . Scanalyzers . | . . . Garrison Access . | . . . Terminal Hacks 8 | . 7 1 Record 5 | . 4 1 Branch Access Points 1 | . 1 . Investigation Status 1 | . 1 . Zone Layout 1 | . 1 . Fabricator Hacks . | . . . Repair Station Hacks . | . . . Recycling Unit Hacks . | . . . Scanalyzer . | . . . Garrison Access Hacks . | . . . Unauthorized Hacks . | . . . Terminals . | . . . Fabricators . | . . . Repair Stations . | . . . Recycling Units . | . . . Scanalyzers . | . . . Garrison Access . | . . . Data Cores Recovered . | . . . Used . | . . . Hacking Detections 3 | . 2 1 Full Trace Events 1 | . 1 . Feedback Events . | . . . Feedback Blocked . | . . . Robot Schematics Acquired . | . . . Robots Built . | . . . Authchips . | . . . Time . | . . . Total Robot Build Rating . | . . . Part Schematics Acquired . | . . . Parts Built . | . . . Authchips . | . . . Time . | . . . Total Part Build Rating . | . . . Parts Repaired . | . . . Time . | . . . Parts Recycled . | . . . Recycled Matter . | . . . Retrieved Matter . | . . . Retrieved Components . | . . . Parts Scanalyzed . | . . . Part Schematics Acquired . | . . . Parts Damaged . | . . . Bothacking | -11 -10 -9 ------------ Run | Yrd Mat Mat Used RIF Installer . | . . . Robots Hacked . | . . . Non-combat . | . . . Combat . | . . . Robot Hacks Applied . | . . . Relay Couplers Released . | . . . Fabnet Peak Effective % . | . . . Robots Rewired . | . . . Allies Hacked . | . . . Hacks Repelled . | . . . Allies | -11 -10 -9 -------- Run | Yrd Mat Mat Total Allies . | . . . Largest Group . | . . . Highest-Rated Group . | . . . Highest-Rated Ally . | . . . Total Orders . | . . . Ally Attacks . | . . . Total Damage . | . . . Kills . | . . . Allies Corrupted . | . . . Allies Melted . | . . . Intel | -11 -10 -9 ------- Run | Yrd Mat Mat Robot Analysis Total . | . . . Derelict Logs Recovered . | . . . Drone Launches . | . . . Drone Recoveries . | . . . Exploration | -11 -10 -9 ------------- Run | Yrd Mat Mat Turns Passed 2090 | 146 1056 888 Spaces Moved 918 | 86 475 357 Core 21 | 10 3 8 Treads 897 | 76 472 349 Legs . | . . . Wheels . | . . . Hover . | . . . Flight . | . . . Fastest Speed 50 | 50 100 160 Average Speed 180 | 147 167 205 Slowest Speed 1550 | 160 320 1550 Overloaded Moves . | . . . Propulsion Burnouts . | . . . Robots Hopped . | . . . Cave-ins Triggered . | . . . Exploration Rate (%) 30 | 6 64 20 Regions Visited 2 Branch Regions . Pre-discovered Areas . | . . . Known Exits Taken . | . . . Unknown Exits Taken 2 | 1 1 . Scrap Searched . | . . . Spaces Dug . | . . . Terrain Destroyed 13 | . . 13 Melee . | . . . Projectile . | . . . AOE 13 | . . 13 Terrain Rammed . | . . . Walls Destroyed . | . . . Machines Disabled . | . . . Actions | -11 -10 -9 --------- Run | Yrd Mat Mat Total 1257 | 105 686 466 Wait 190 | 3 136 51 Move 916 | 85 474 357 Hop . | . . . Pick Up 38 | 10 21 7 Fast Attach . | . . . Attach 25 | 6 12 7 Detach 2 | . 1 1 Swap 11 | 1 4 6 Drop 12 | . 8 4 Fire 62 | . 30 32 Melee . | . . . Ram . | . . . Kick . | . . . Crush 1 | . . 1 Escape Stasis . | . . . Rewire . | . . . Trap . | . . . Miscellaneous . | . . . Route ------- -11/Scrapyard -10/Materials (discovered 5 exits: *Mat x2 / *Min x2 / [Sub]) -9/Materials History --------- Turn | Location | Event 3 | -11/Scrapyard | Discovered new exit (range 16) 147 | -11/Scrapyard | Entered Materials 313 | -10/Materials | Build established: Mutant 313 | -10/Materials | Identified exit to Mines 877 | -10/Materials | Discovered new exit (range 8) 994 | -10/Materials | Discovered new exit (range 9) 1111 | -10/Materials | Discovered new exit (range 15) 1203 | -10/Materials | Entered another Materials area 1203 | -9/Materials | Evolved 2 slots: Power x1, Utility x1 1911 | -9/Materials | Lost 4 parts (2p1n1w) 2043 | -9/Materials | Core integrity fell below 50% 2064 | -9/Materials | Lost 6 parts (1p1n2u2w) 2080 | -9/Materials | Core integrity fell below 20% 2091 | -9/Materials | Destroyed by Y-45 Defender with Heavy Assault Rifle Last Messages --------------- (Burn). 01885_ Lgt. Treads melted. 01885_ Y-45 Defender destroyed. 01893_ K-01 Serf collects debris. 01898_ Acquired 56 matter. 01900_ K-01 Serf collects debris. 01938_ Acquired 14 matter. 01940_ K-01 Serf collects debris. 01972_ Com. Matter Pod destroyed. 01980_ U-05 Engineer builds a Door. 01984_ U-05 Engineer lays Concrete. 01985_ U-05 Engineer builds a Wall. 01988_ Lgt. Treads destroyed. 01989_ U-05 Engineer lays Concrete. 01994_ Structural Scanner destroyed. 01998_ U-05 Engineer lays Concrete. 02005_ Imp. Ion Engine destroyed. 02015_ Assault Rifle destroyed. 02033_ Imp. Medium Laser destroyed. 02033_ Critical hit (Burn: +37). Map ----- +----------------------------------------------------+ | ????????????????????????????????????? | | ????????????????????????????????????? | | ????????????????????????????????????? | | ????????????????????????????????????? | | ????????????????????????????????????? | | ????????????????????????????????????? | | ????????????????????????????????????? | | ????????????????????????????????????? | | ????????????????????????????????????? | | ????????????????????????????????????? | | ?????????? ???????????????????????? | | ?????????#^ ???????????????????????? | | ????????## #??????????????????????? | | ????????# ??????????????????????? | | ????????# ??????????????????????? | | ????????? ??????????? ????????? | | ????????? ??????????? ????????? | | ????????# ??????????? #??????? | | ????????## #??????????? ## ???? | | ???????? # #??????????? #####???? | | ???????? + #??????????? ???? | | ???????? # +?????????? ????? | | ???????? # ##?????????# " ????? | | ???????? # ##?????????## "" ?? | | ???????? # ##?????????## "" | | ???????? # @##?????????## """ | | ???????### ###????????## "" ? | | ???????### Y############# """ ?? | | ???????## ############ """ # ?? | | ???????## """ # ?? | | ???????## " # ?? | | ???????## # ?? | | ???????## r###+####+### # | | ???????###### # ## #### | | ???????###### # ## | | ???????????## # " "Y" | | ???????????## # ## """ | | ???????????## # ###+########/ | | ???????????## # # ### | | ???????????## # # ??????????? | | ???????????## # # ??????????? | | ???????????## ########### ??????????? | | ???????????## ########### ??????????? | | ???????????## ###########???????????? | | ???????????## ###########???????????? | | ???????????## # #???????????? | | ?????????#### # ?? ????????????? | | ????????##### # ? ????????????? | | ????????##### # """ """ ????????????? | | ????????### # """ """ ###########?? | +----------------------------------------------------+ Best States ------------- Heat Dissipation 28 Energy Generation 19 Energy Capacity 430 Matter Stores 450 Matter Capacity 450 Sight Range 16 Robot Scan Range 14 Terrain Scan Density 10 Evasion (%) 40 Recoil Reduction 2 Item Schematics ----------------- None Robot Schematics ------------------ None Fabricated ------------ Nothing Alien Tech Used ----------------- None Achievements -------------- None Challenges ------------ None Game ------ Seed FocalMissileMediator Manual? 0 Play Time 00:28:02 Cumulative 11.2 hours Start 2024.02.29 @ 13:39:20 End 2024.02.29 @ 14:47:09 Sessions 1 Manual Loads 0 Difficulty Rogue Special Mode None Game No. 22 Rogue 17 Adventurer 5 Explorer 0 Win Type - Total 0 Types 0/0/0/0/0/0/0/0/0 Lore% 12 Gallery% 13 Achievement% 11 Wizard Run 0 Options --------- Layout 1 ASCII 0 Keyboard 0 Movement Numpad Keybinds 0 Fullscreen 1 Font 24/X11 Map View 50x35 Zoom Use 2% Tactical HUD 1 Map Filters NONE Filters NONE Steam 1 RUN: 4f2da891-c0c5-4401-90ef-713f05270c23